[Event "Titled Tuesday Blitz March 07 Late 2023"]
[White "Ansh M Shah"]
[Black "Matinian, Nikita"]
[WhiteFideId "25033379"]
[BlackFideId "24129100"]
[WhiteElo "2084"]
[BlackElo "2422"]
[Result "0-1"]
[Round "04"]
[TimeControl "180+2"]
[Date "2023.03.07"]
[WhiteClock "0:00:07"]
[BlackClock "0:00:31"]

1. d4 {[%clk 0:03:00]}  Nf6 {[%clk 0:02:57]} 2. c4 {[%clk 0:03:01]}  e6 {[%clk 0:02:55]} 3. g3 {[%clk 0:03:01]}  Bb4+ {[%clk 0:02:53]} 4. Nd2 {[%clk 0:03:00]}  O-O {[%clk 0:02:49]} 5. Bg2 {[%clk 0:03:00]}  d5 {[%clk 0:02:47]} 6. Nf3 {[%clk 0:03:01]}  b6 {[%clk 0:02:46]} 7. O-O {[%clk 0:03:00]}  Bb7 {[%clk 0:02:46]} 8. a3 {[%clk 0:03:01]}  Bd6 {[%clk 0:02:39]} 9. b4 {[%clk 0:02:59]}  dxc4 {[%clk 0:02:29]} 10. Nxc4 {[%clk 0:02:59]}  Nbd7 {[%clk 0:02:27]} 11. Nxd6 {[%clk 0:02:55]}  cxd6 {[%clk 0:02:27]} 12. Bf4 {[%clk 0:02:55]}  Qe7 {[%clk 0:02:27]} 13. Rc1 {[%clk 0:02:54]}  Rac8 {[%clk 0:02:14]} 14. Qa4 {[%clk 0:02:50]}  a6 {[%clk 0:02:12]} 15. Nd2 {[%clk 0:01:57]}  Nd5 {[%clk 0:02:07]} 16. Ne4 {[%clk 0:01:17]}  Nxf4 {[%clk 0:02:01]} 17. gxf4 {[%clk 0:01:18]}  d5 {[%clk 0:01:37]} 18. Ng5 {[%clk 0:01:05]}  Qd6 {[%clk 0:01:33]} 19. e3 {[%clk 0:01:05]}  b5 {[%clk 0:01:16]} 20. Qb3 {[%clk 0:01:03]}  Nb6 {[%clk 0:01:13]} 21. Qd3 {[%clk 0:01:04]}  g6 {[%clk 0:01:12]} 22. Nf3 {[%clk 0:00:52]}  f6 {[%clk 0:01:05]} 23. Rc5 {[%clk 0:00:37]}  Na4 {[%clk 0:01:03]} 24. Rcc1 {[%clk 0:00:29]}  Nb2 {[%clk 0:01:02]} 25. Qb3 {[%clk 0:00:22]}  Nc4 {[%clk 0:01:02]} 26. Rc2 {[%clk 0:00:17]}  Rc7 {[%clk 0:01:02]} 27. Rfc1 {[%clk 0:00:17]}  Rg7 {[%clk 0:00:58]} 28. h4 {[%clk 0:00:16]}  h6 {[%clk 0:00:56]} 29. Qd3 {[%clk 0:00:15]}  g5 {[%clk 0:00:53]} 30. hxg5 {[%clk 0:00:15]}  fxg5 {[%clk 0:00:52]} 31. Ne5 {[%clk 0:00:15]}  gxf4 {[%clk 0:00:47]} 32. exf4 {[%clk 0:00:15]}  Rxf4 {[%clk 0:00:47]} 33. Qh3 {[%clk 0:00:14]}  Rxd4 {[%clk 0:00:41]} 34. Nf3 {[%clk 0:00:11]}  Rdg4 {[%clk 0:00:39]} 35. Ne1 {[%clk 0:00:10]}  d4 {[%clk 0:00:38]} 36. f3 {[%clk 0:00:10]}  R4g6 {[%clk 0:00:36]} 37. Nd3 {[%clk 0:00:09]}  Ne3 {[%clk 0:00:36]} 38. Rc8+ {[%clk 0:00:07]}  Bxc8 {[%clk 0:00:36]} 39. Rxc8+ {[%clk 0:00:07]}  Kh7 {[%clk 0:00:37]} 40. Rc2 {[%clk 0:00:07]}  Rxg2+ {[%clk 0:00:36]} 41. Rxg2 {[%clk 0:00:07]}  Rxg2+ {[%clk 0:00:36]} 42. Kh1 {[%clk 0:00:08]}  Qg3 {[%clk 0:00:32]} 43. Qxe6 {[%clk 0:00:07]}  Rg1# {[%clk 0:00:31]} 0-1


[Site "https://www.chess.com"]

[Event "Titled Tuesday Blitz March 07 Late 2023"]
[White "Mazurkiewicz, Michal"]
[Black "Sai Krishna G V"]
[WhiteFideId "1124943"]
[BlackFideId "5028280"]
[WhiteElo "2054"]
[BlackElo "2359"]
[Result "0-1"]
[Round "04"]
[TimeControl "180+2"]
[Date "2023.03.07"]
[WhiteClock "0:00:03"]
[BlackClock "0:01:36"]

1. e4 {[%clk 0:02:59]}  e5 {[%clk 0:03:00]} 2. Nf3 {[%clk 0:02:59]}  Nc6 {[%clk 0:03:00]} 3. d3 {[%clk 0:02:59]}  Bc5 {[%clk 0:02:56]} 4. g3 {[%clk 0:02:57]}  Nge7 {[%clk 0:02:55]} 5. Bg2 {[%clk 0:02:55]}  O-O {[%clk 0:02:56]} 6. O-O {[%clk 0:02:55]}  d6 {[%clk 0:02:56]} 7. c3 {[%clk 0:02:55]}  f5 {[%clk 0:02:55]} 8. b4 {[%clk 0:02:51]}  Bb6 {[%clk 0:02:55]} 9. a4 {[%clk 0:02:47]}  a6 {[%clk 0:02:53]} 10. Nbd2 {[%clk 0:02:43]}  f4 {[%clk 0:02:50]} 11. Nc4 {[%clk 0:02:34]}  Ba7 {[%clk 0:02:50]} 12. b5 {[%clk 0:02:34]}  Nb8 {[%clk 0:02:49]} 13. d4 {[%clk 0:02:28]}  Nd7 {[%clk 0:02:41]} 14. dxe5 {[%clk 0:02:07]}  fxg3 {[%clk 0:02:35]} 15. hxg3 {[%clk 0:02:05]}  axb5 {[%clk 0:02:34]} 16. exd6 {[%clk 0:00:56]}  bxc4 {[%clk 0:02:34]} 17. dxe7 {[%clk 0:00:56]}  Qxe7 {[%clk 0:02:35]} 18. Qd5+ {[%clk 0:00:56]}  Kh8 {[%clk 0:02:35]} 19. Qxc4 {[%clk 0:00:50]}  Nc5 {[%clk 0:02:33]} 20. Ba3 {[%clk 0:00:46]}  Be6 {[%clk 0:02:33]} 21. Qb5 {[%clk 0:00:40]}  c6 {[%clk 0:02:29]} 22. Qe2 {[%clk 0:00:27]}  Bg4 {[%clk 0:02:27]} 23. Qe3 {[%clk 0:00:23]}  Qxe4 {[%clk 0:02:08]} 24. Bxc5 {[%clk 0:00:10]}  Qxe3 {[%clk 0:02:08]} 25. Bxe3 {[%clk 0:00:09]}  Bxf3 {[%clk 0:02:08]} 26. Bxf3 {[%clk 0:00:09]}  Rxf3 {[%clk 0:02:09]} 27. Bxa7 {[%clk 0:00:10]}  Rxa7 {[%clk 0:02:10]} 28. Rfe1 {[%clk 0:00:10]}  h5 {[%clk 0:02:03]} 29. Re7 {[%clk 0:00:10]}  Rxc3 {[%clk 0:02:02]} 30. Rb1 {[%clk 0:00:07]}  Ra3 {[%clk 0:01:58]} 31. Rd1 {[%clk 0:00:07]}  R3xa4 {[%clk 0:01:57]} 32. Rd8+ {[%clk 0:00:06]}  Kh7 {[%clk 0:01:57]} 33. Rdd7 {[%clk 0:00:07]}  Rg4 {[%clk 0:01:57]} 34. Rxb7 {[%clk 0:00:07]}  Rxb7 {[%clk 0:01:57]} 35. Rxb7 {[%clk 0:00:08]}  c5 {[%clk 0:01:57]} 36. Rc7 {[%clk 0:00:08]}  Rc4 {[%clk 0:01:57]} 37. Kg2 {[%clk 0:00:08]}  Rc2 {[%clk 0:01:57]} 38. Rc6 {[%clk 0:00:08]}  c4 {[%clk 0:01:53]} 39. Kf3 {[%clk 0:00:08]}  g6 {[%clk 0:01:53]} 40. Ke3 {[%clk 0:00:07]}  Kh6 {[%clk 0:01:50]} 41. f4 {[%clk 0:00:07]}  Rc3+ {[%clk 0:01:50]} 42. Kf2 {[%clk 0:00:07]}  Kg7 {[%clk 0:01:49]} 43. Kg2 {[%clk 0:00:07]}  Kf7 {[%clk 0:01:50]} 44. Kh3 {[%clk 0:00:04]}  Rc1 {[%clk 0:01:45]} 45. Kh4 {[%clk 0:00:04]}  c3 {[%clk 0:01:45]} 46. Kg5 {[%clk 0:00:04]}  c2 {[%clk 0:01:44]} 47. Rc7+ {[%clk 0:00:04]}  Ke8 {[%clk 0:01:39]} 48. Kxg6 {[%clk 0:00:05]}  h4 {[%clk 0:01:38]} 49. g4 {[%clk 0:00:03]}  h3 {[%clk 0:01:39]} 50. f5 {[%clk 0:00:02]}  h2 {[%clk 0:01:39]} 51. f6 {[%clk 0:00:03]}  h1=Q {[%clk 0:01:35]} 52. f7+ {[%clk 0:00:03]}  Kd8 {[%clk 0:01:36]} 53. f8=Q+ {[%clk 0:00:03]}  Kxc7 {[%clk 0:01:36]} 54. Qe7+ {[%clk 0:00:03]}  Kc6 {[%clk 0:01:36]} 55. Qe6+ {[%clk 0:00:03]}  Kc5 {[%clk 0:01:37]} 56. Qe5+ {[%clk 0:00:03]}  Kc4 {[%clk 0:01:37]} 57. Qe4+ {[%clk 0:00:03]}  Qxe4+ {[%clk 0:01:36]} 0-1


[Site "https://www.chess.com"]

[Event "Titled Tuesday Blitz March 07 Late 2023"]
[White "Fus, Jakub"]
[Black "Slade, Theodore"]
[WhiteFideId "1193023"]
[BlackFideId "426547"]
[WhiteElo "2335"]
[BlackElo "1964"]
[Result "1-0"]
[Round "04"]
[TimeControl "180+2"]
[Date "2023.03.07"]
[WhiteClock "0:02:02"]
[BlackClock "0:00:49"]

1. e4 {[%clk 0:03:00]}  e5 {[%clk 0:03:00]} 2. Nf3 {[%clk 0:03:00]}  Nc6 {[%clk 0:03:01]} 3. Bb5 {[%clk 0:03:01]}  Nf6 {[%clk 0:03:01]} 4. O-O {[%clk 0:03:00]}  Nxe4 {[%clk 0:03:02]} 5. d4 {[%clk 0:03:00]}  Nd6 {[%clk 0:03:02]} 6. dxe5 {[%clk 0:03:00]}  Nxb5 {[%clk 0:03:03]} 7. a4 {[%clk 0:03:01]}  Nbd4 {[%clk 0:03:03]} 8. Nxd4 {[%clk 0:03:02]}  d5 {[%clk 0:03:04]} 9. exd6 {[%clk 0:03:01]}  Nxd4 {[%clk 0:03:03]} 10. Qxd4 {[%clk 0:03:02]}  Qxd6 {[%clk 0:03:03]} 11. Qe4+ {[%clk 0:03:02]}  Qe6 {[%clk 0:03:04]} 12. Qd4 {[%clk 0:03:03]}  Qd6 {[%clk 0:03:04]} 13. Qe3+ {[%clk 0:03:04]}  Be7 {[%clk 0:02:54]} 14. Nc3 {[%clk 0:03:03]}  O-O {[%clk 0:02:51]} 15. Nb5 {[%clk 0:03:02]}  Qd8 {[%clk 0:02:47]} 16. Qg3 {[%clk 0:02:55]}  c6 {[%clk 0:02:16]} 17. Bh6 {[%clk 0:02:52]}  Bf6 {[%clk 0:02:14]} 18. Rad1 {[%clk 0:02:51]}  Bd7 {[%clk 0:01:52]} 19. Nd6 {[%clk 0:02:40]}  Qc7 {[%clk 0:01:46]} 20. Bf4 {[%clk 0:02:25]}  Qb6 {[%clk 0:01:27]} 21. Ne4 {[%clk 0:02:21]}  Bd4 {[%clk 0:01:06]} 22. Rxd4 {[%clk 0:02:09]}  Qxd4 {[%clk 0:01:06]} 23. Be5 {[%clk 0:02:09]}  Qxe5 {[%clk 0:00:48]} 24. Qxe5 {[%clk 0:02:10]}  Rfe8 {[%clk 0:00:49]} 25. Qf4 {[%clk 0:02:02]} 1-0


[Site "https://www.chess.com"]

[Event "Titled Tuesday Blitz March 07 Late 2023"]
[White "Brozyna, Mateusz"]
[Black "Zarubitski, Viachaslau"]
[WhiteFideId "21816140"]
[BlackFideId "13509373"]
[WhiteElo "2189"]
[BlackElo "2284"]
[Result "0-1"]
[Round "04"]
[TimeControl "180+2"]
[Date "2023.03.07"]
[WhiteClock "0:00:02"]
[BlackClock "0:01:04"]

1. e4 {[%clk 0:03:00]}  e5 {[%clk 0:02:59]} 2. Nf3 {[%clk 0:03:00]}  Nf6 {[%clk 0:03:00]} 3. Nxe5 {[%clk 0:02:57]}  d6 {[%clk 0:03:00]} 4. Nd3 {[%clk 0:02:52]}  Nxe4 {[%clk 0:03:00]} 5. Qe2 {[%clk 0:02:53]}  Qe7 {[%clk 0:02:59]} 6. Nf4 {[%clk 0:02:53]}  Nf6 {[%clk 0:02:57]} 7. g3 {[%clk 0:02:44]}  Nc6 {[%clk 0:02:52]} 8. Qxe7+ {[%clk 0:02:39]}  Bxe7 {[%clk 0:02:52]} 9. Bg2 {[%clk 0:02:35]}  Bf5 {[%clk 0:02:52]} 10. d3 {[%clk 0:02:33]}  O-O-O {[%clk 0:02:50]} 11. Be3 {[%clk 0:02:17]}  Ng4 {[%clk 0:02:43]} 12. Nd5 {[%clk 0:02:13]}  Rhe8 {[%clk 0:02:36]} 13. Nxe7+ {[%clk 0:02:04]}  Rxe7 {[%clk 0:02:35]} 14. Kd2 {[%clk 0:01:49]}  Rde8 {[%clk 0:02:35]} 15. Nc3 {[%clk 0:01:02]}  Nxe3 {[%clk 0:02:32]} 16. fxe3 {[%clk 0:01:03]}  Rxe3 {[%clk 0:02:32]} 17. Bxc6 {[%clk 0:01:04]}  bxc6 {[%clk 0:02:32]} 18. Rae1 {[%clk 0:01:03]}  Rxe1 {[%clk 0:02:30]} 19. Rxe1 {[%clk 0:01:04]}  Rxe1 {[%clk 0:02:29]} 20. Kxe1 {[%clk 0:01:05]}  Kd7 {[%clk 0:02:30]} 21. Kd2 {[%clk 0:01:05]}  c5 {[%clk 0:02:27]} 22. Ke3 {[%clk 0:01:05]}  c6 {[%clk 0:02:27]} 23. Ne2 {[%clk 0:01:02]}  g5 {[%clk 0:02:25]} 24. c3 {[%clk 0:01:00]}  Bg4 {[%clk 0:02:19]} 25. Nc1 {[%clk 0:00:59]}  Ke6 {[%clk 0:02:18]} 26. Nb3 {[%clk 0:00:58]}  Kd5 {[%clk 0:02:16]} 27. Na5 {[%clk 0:00:57]}  Bd7 {[%clk 0:02:14]} 28. Nb7 {[%clk 0:00:54]}  f5 {[%clk 0:02:12]} 29. Nd8 {[%clk 0:00:37]}  Be8 {[%clk 0:02:07]} 30. a4 {[%clk 0:00:28]}  Ke5 {[%clk 0:02:06]} 31. a5 {[%clk 0:00:21]}  f4+ {[%clk 0:01:58]} 32. Kf3 {[%clk 0:00:22]}  fxg3 {[%clk 0:01:52]} 33. hxg3 {[%clk 0:00:21]}  h5 {[%clk 0:01:51]} 34. a6 {[%clk 0:00:21]}  Kd5 {[%clk 0:01:46]} 35. Nb7 {[%clk 0:00:20]}  Bd7 {[%clk 0:01:36]} 36. Na5 {[%clk 0:00:18]}  h4 {[%clk 0:01:30]} 37. gxh4 {[%clk 0:00:18]}  gxh4 {[%clk 0:01:30]} 38. Nc4 {[%clk 0:00:19]}  Bc8 {[%clk 0:01:26]} 39. Ne3+ {[%clk 0:00:16]}  Ke5 {[%clk 0:01:19]} 40. Nc4+ {[%clk 0:00:03]}  Ke6 {[%clk 0:01:19]} 41. Kg4 {[%clk 0:00:03]}  Bxa6 {[%clk 0:01:18]} 42. Na5 {[%clk 0:00:02]}  Kd5 {[%clk 0:01:12]} 43. c4+ {[%clk 0:00:03]}  Kd4 {[%clk 0:01:12]} 44. Nxc6+ {[%clk 0:00:03]}  Kxd3 {[%clk 0:01:11]} 45. b3 {[%clk 0:00:03]}  Kc3 {[%clk 0:01:03]} 46. Na5 {[%clk 0:00:01]}  Kb4 {[%clk 0:01:02]} 47. Nc6+ {[%clk 0:00:01]}  Kxb3 {[%clk 0:01:03]} 48. Nxa7 {[%clk 0:00:02]}  Kxc4 {[%clk 0:01:03]} 49. Kxh4 {[%clk 0:00:02]}  Kd5 {[%clk 0:01:02]} 50. Kg3 {[%clk 0:00:03]}  c4 {[%clk 0:01:03]} 51. Kf2 {[%clk 0:00:03]}  Kc5 {[%clk 0:01:03]} 52. Ke3 {[%clk 0:00:03]}  Kb6 {[%clk 0:01:04]} 53. Kd4 {[%clk 0:00:02]}  Kxa7 {[%clk 0:01:04]} 0-1


[Site "https://www.chess.com"]

[Event "Titled Tuesday Blitz March 07 Late 2023"]
[White "Diaz Perez, Michel Alejandro"]
[Black "Shohat, Yotam"]
[WhiteFideId "3517179"]
[BlackFideId "2813955"]
[WhiteElo "2333"]
[BlackElo "2226"]
[Result "1-0"]
[Round "04"]
[TimeControl "180+2"]
[Date "2023.03.07"]
[WhiteClock "0:00:04"]
[BlackClock "0:00:02"]

1. d4 {[%clk 0:03:00]}  d5 {[%clk 0:02:59]} 2. Nf3 {[%clk 0:03:01]}  Nf6 {[%clk 0:02:58]} 3. c4 {[%clk 0:03:02]}  e6 {[%clk 0:02:58]} 4. a3 {[%clk 0:03:01]}  Be7 {[%clk 0:02:51]} 5. Nc3 {[%clk 0:03:01]}  O-O {[%clk 0:02:50]} 6. Bf4 {[%clk 0:03:01]}  Nbd7 {[%clk 0:02:40]} 7. e3 {[%clk 0:03:00]}  a6 {[%clk 0:02:29]} 8. c5 {[%clk 0:02:59]}  Nh5 {[%clk 0:02:25]} 9. Bg3 {[%clk 0:02:57]}  Nxg3 {[%clk 0:02:22]} 10. hxg3 {[%clk 0:02:55]}  c6 {[%clk 0:02:23]} 11. Bd3 {[%clk 0:02:54]}  g6 {[%clk 0:02:22]} 12. b4 {[%clk 0:02:50]}  Bf6 {[%clk 0:02:07]} 13. e4 {[%clk 0:02:44]}  e5 {[%clk 0:02:07]} 14. exd5 {[%clk 0:02:36]}  exd4 {[%clk 0:02:07]} 15. Ne4 {[%clk 0:02:30]}  cxd5 {[%clk 0:02:06]} 16. Nd6 {[%clk 0:02:27]}  b6 {[%clk 0:01:50]} 17. Nxc8 {[%clk 0:02:13]}  Re8+ {[%clk 0:01:39]} 18. Kf1 {[%clk 0:02:11]}  Rxc8 {[%clk 0:01:36]} 19. Bxa6 {[%clk 0:02:08]}  Ra8 {[%clk 0:01:26]} 20. Bb7 {[%clk 0:02:04]}  Ra7 {[%clk 0:01:17]} 21. Bxd5 {[%clk 0:02:00]}  Nxc5 {[%clk 0:00:56]} 22. Bc4 {[%clk 0:01:25]}  Ne4 {[%clk 0:00:51]} 23. Qd3 {[%clk 0:01:14]}  Rae7 {[%clk 0:00:33]} 24. Bb5 {[%clk 0:01:12]}  Rf8 {[%clk 0:00:33]} 25. Re1 {[%clk 0:01:09]}  Nc3 {[%clk 0:00:31]} 26. Bc4 {[%clk 0:00:55]}  Rxe1+ {[%clk 0:00:27]} 27. Nxe1 {[%clk 0:00:56]}  Qe7 {[%clk 0:00:23]} 28. Nf3 {[%clk 0:00:52]}  Rd8 {[%clk 0:00:21]} 29. g4 {[%clk 0:00:47]}  Ne4 {[%clk 0:00:17]} 30. g3 {[%clk 0:00:45]}  Nd6 {[%clk 0:00:16]} 31. Bb3 {[%clk 0:00:44]}  Qe4 {[%clk 0:00:16]} 32. Bc2 {[%clk 0:00:39]}  Qd5 {[%clk 0:00:15]} 33. Kg2 {[%clk 0:00:36]}  Rc8 {[%clk 0:00:15]} 34. Bb3 {[%clk 0:00:35]}  Qb7 {[%clk 0:00:12]} 35. Qd2 {[%clk 0:00:22]}  Rc3 {[%clk 0:00:12]} 36. Bd1 {[%clk 0:00:23]}  Ne4 {[%clk 0:00:10]} 37. Qh6 {[%clk 0:00:23]}  Ng5 {[%clk 0:00:10]} 38. Re1 {[%clk 0:00:16]}  Qa8 {[%clk 0:00:06]} 39. Kf1 {[%clk 0:00:09]}  Nxf3 {[%clk 0:00:06]} 40. Bxf3 {[%clk 0:00:09]}  Rxf3 {[%clk 0:00:07]} 41. g5 {[%clk 0:00:06]}  Bg7 {[%clk 0:00:07]} 42. Qh4 {[%clk 0:00:07]}  Rf5 {[%clk 0:00:04]} 43. Rc1 {[%clk 0:00:05]}  Rd5 {[%clk 0:00:02]} 44. Qe4 {[%clk 0:00:04]}  Rd8 {[%clk 0:00:03]} 45. Qf4 {[%clk 0:00:04]}  d3 {[%clk 0:00:02]} 46. Rc7 {[%clk 0:00:05]}  Qd5 {[%clk 0:00:02]} 47. Ke1 {[%clk 0:00:04]} 1-0


[Site "https://www.chess.com"]

[Event "Titled Tuesday Blitz March 07 Late 2023"]
[White "Hernandez Gonzalez, William"]
[Black "Vaglio Munoz, Jaime"]
[WhiteFideId "3509915"]
[BlackFideId "6500145"]
[WhiteElo "2374"]
[BlackElo "2199"]
[Result "1-0"]
[Round "04"]
[TimeControl "180+2"]
[Date "2023.03.07"]
[WhiteClock "0:00:52"]
[BlackClock "0:00:10"]

1. e4 {[%clk 0:02:59]}  d6 {[%clk 0:02:58]} 2. d4 {[%clk 0:02:48]}  Nf6 {[%clk 0:02:58]} 3. Nc3 {[%clk 0:02:47]}  e5 {[%clk 0:02:58]} 4. Nf3 {[%clk 0:02:41]}  Nbd7 {[%clk 0:02:58]} 5. g3 {[%clk 0:02:41]}  Be7 {[%clk 0:02:56]} 6. Bg2 {[%clk 0:02:41]}  O-O {[%clk 0:02:56]} 7. O-O {[%clk 0:02:41]}  c6 {[%clk 0:02:52]} 8. a4 {[%clk 0:02:41]}  a5 {[%clk 0:02:52]} 9. h3 {[%clk 0:02:41]}  Re8 {[%clk 0:02:49]} 10. Re1 {[%clk 0:02:41]}  Bf8 {[%clk 0:02:47]} 11. g4 {[%clk 0:02:42]}  h6 {[%clk 0:02:41]} 12. b3 {[%clk 0:02:38]}  exd4 {[%clk 0:02:13]} 13. Nxd4 {[%clk 0:02:37]}  Nc5 {[%clk 0:02:13]} 14. Bb2 {[%clk 0:02:36]}  Qb6 {[%clk 0:02:14]} 15. Nf5 {[%clk 0:02:26]}  Bxf5 {[%clk 0:01:56]} 16. exf5 {[%clk 0:02:23]}  d5 {[%clk 0:01:53]} 17. Qd4 {[%clk 0:02:19]}  Qb4 {[%clk 0:01:44]} 18. Qxb4 {[%clk 0:02:08]}  axb4 {[%clk 0:01:44]} 19. Ne2 {[%clk 0:02:08]}  Nce4 {[%clk 0:01:28]} 20. Ng3 {[%clk 0:02:03]}  Nc3 {[%clk 0:01:05]} 21. Bf3 {[%clk 0:01:56]}  Bd6 {[%clk 0:00:51]} 22. Kg2 {[%clk 0:01:52]}  Kf8 {[%clk 0:00:44]} 23. h4 {[%clk 0:01:48]}  Bf4 {[%clk 0:00:44]} 24. Ne2 {[%clk 0:01:20]}  Bd2 {[%clk 0:00:42]} 25. Red1 {[%clk 0:01:13]}  Nxd1 {[%clk 0:00:41]} 26. Rxd1 {[%clk 0:01:14]}  Bc3 {[%clk 0:00:35]} 27. Nxc3 {[%clk 0:01:13]}  bxc3 {[%clk 0:00:33]} 28. Bxc3 {[%clk 0:01:12]}  Ne4 {[%clk 0:00:33]} 29. Bd4 {[%clk 0:01:10]}  f6 {[%clk 0:00:21]} 30. Be3 {[%clk 0:01:02]}  Rad8 {[%clk 0:00:19]} 31. Bf4 {[%clk 0:00:55]}  c5 {[%clk 0:00:15]} 32. Bc7 {[%clk 0:00:54]}  Rd7 {[%clk 0:00:10]} 33. Bb6 {[%clk 0:00:54]}  Nc3 {[%clk 0:00:10]} 34. Bxc5+ {[%clk 0:00:52]} 1-0


[Site "https://www.chess.com"]

[Event "Titled Tuesday Blitz March 07 Late 2023"]
[White "Martinez Ramirez, Lennis"]
[Black "Topalov, Aleksandar"]
[WhiteFideId "3509079"]
[BlackFideId "925659"]
[WhiteElo "2439"]
[BlackElo "2151"]
[Result "1-0"]
[Round "04"]
[TimeControl "180+2"]
[Date "2023.03.07"]
[WhiteClock "0:01:13"]
[BlackClock "0:00:01"]

1. c4 {[%clk 0:03:00]}  Nf6 {[%clk 0:02:59]} 2. Nc3 {[%clk 0:03:00]}  c5 {[%clk 0:02:59]} 3. g3 {[%clk 0:03:01]}  g6 {[%clk 0:02:59]} 4. Bg2 {[%clk 0:03:01]}  Bg7 {[%clk 0:03:00]} 5. Nf3 {[%clk 0:03:02]}  O-O {[%clk 0:03:00]} 6. d4 {[%clk 0:03:02]}  Nc6 {[%clk 0:03:00]} 7. d5 {[%clk 0:03:02]}  Na5 {[%clk 0:02:59]} 8. Qd3 {[%clk 0:02:52]}  d6 {[%clk 0:02:58]} 9. e4 {[%clk 0:02:51]}  a6 {[%clk 0:02:57]} 10. a4 {[%clk 0:02:35]}  Nb3 {[%clk 0:02:51]} 11. Rb1 {[%clk 0:02:35]}  Nxc1 {[%clk 0:02:50]} 12. Rxc1 {[%clk 0:02:36]}  e6 {[%clk 0:02:36]} 13. dxe6 {[%clk 0:02:35]}  Bxe6 {[%clk 0:02:35]} 14. O-O {[%clk 0:02:36]}  Qb6 {[%clk 0:02:30]} 15. Ng5 {[%clk 0:02:30]}  Ng4 {[%clk 0:02:22]} 16. Nxe6 {[%clk 0:02:18]}  fxe6 {[%clk 0:02:21]} 17. Bh3 {[%clk 0:02:17]}  Nxf2 {[%clk 0:01:57]} 18. Bxe6+ {[%clk 0:02:11]}  Kh8 {[%clk 0:01:56]} 19. Rxf2 {[%clk 0:02:11]}  Bd4 {[%clk 0:01:56]} 20. Rc2 {[%clk 0:02:08]}  Rxf2 {[%clk 0:01:53]} 21. Rxf2 {[%clk 0:02:08]}  Rf8 {[%clk 0:01:53]} 22. Nd1 {[%clk 0:02:08]}  Qb4 {[%clk 0:01:47]} 23. Kg2 {[%clk 0:02:02]}  Bxf2 {[%clk 0:01:47]} 24. Nxf2 {[%clk 0:02:03]}  Qxb2 {[%clk 0:01:47]} 25. Qe3 {[%clk 0:01:59]}  Rf6 {[%clk 0:01:25]} 26. Bd5 {[%clk 0:01:59]}  Kg7 {[%clk 0:01:21]} 27. e5 {[%clk 0:01:50]}  dxe5 {[%clk 0:00:54]} 28. Qxc5 {[%clk 0:01:50]}  Kh6 {[%clk 0:00:39]} 29. a5 {[%clk 0:01:49]}  Qd2 {[%clk 0:00:21]} 30. Bxb7 {[%clk 0:01:38]}  g5 {[%clk 0:00:13]} 31. Bf3 {[%clk 0:01:33]}  Kg6 {[%clk 0:00:11]} 32. Qxe5 {[%clk 0:01:32]}  h6 {[%clk 0:00:04]} 33. h4 {[%clk 0:01:31]}  gxh4 {[%clk 0:00:03]} 34. Qxf6+ {[%clk 0:01:26]}  Kxf6 {[%clk 0:00:03]} 35. gxh4 {[%clk 0:01:26]}  Ke5 {[%clk 0:00:02]} 36. c5 {[%clk 0:01:25]}  Kf4 {[%clk 0:00:01]} 37. c6 {[%clk 0:01:13]} 1-0


[Site "https://www.chess.com"]

[Event "Titled Tuesday Blitz March 07 Late 2023"]
[White "Cuenca Jimenez, Jose Fernando"]
[Black "ArtemDyachuk"]
[WhiteFideId "2255570"]
[WhiteElo "2429"]
[BlackElo "2409"]
[Result "1-0"]
[Round "04"]
[TimeControl "180+2"]
[Date "2023.03.07"]
[WhiteClock "0:00:22"]
[BlackClock "0:00:05"]

1. c4 {[%clk 0:03:00]}  Nf6 {[%clk 0:02:54]} 2. Nf3 {[%clk 0:02:57]}  c5 {[%clk 0:02:54]} 3. Nc3 {[%clk 0:02:57]}  e6 {[%clk 0:02:54]} 4. g3 {[%clk 0:02:53]}  b6 {[%clk 0:02:53]} 5. Bg2 {[%clk 0:02:53]}  Bb7 {[%clk 0:02:54]} 6. O-O {[%clk 0:02:54]}  Be7 {[%clk 0:02:54]} 7. d4 {[%clk 0:02:54]}  cxd4 {[%clk 0:02:54]} 8. Qxd4 {[%clk 0:02:55]}  O-O {[%clk 0:02:52]} 9. Rd1 {[%clk 0:02:53]}  Qc8 {[%clk 0:02:51]} 10. Bf4 {[%clk 0:02:21]}  Nc6 {[%clk 0:02:30]} 11. Qd2 {[%clk 0:02:18]}  Na5 {[%clk 0:02:24]} 12. b3 {[%clk 0:02:15]}  d5 {[%clk 0:02:24]} 13. cxd5 {[%clk 0:02:06]}  exd5 {[%clk 0:01:06]} 14. Rac1 {[%clk 0:01:37]}  Qf5 {[%clk 0:01:05]} 15. Nd4 {[%clk 0:01:32]}  Qh5 {[%clk 0:01:02]} 16. Qe3 {[%clk 0:01:19]}  Rfe8 {[%clk 0:00:57]} 17. Qf3 {[%clk 0:01:18]}  Qg6 {[%clk 0:00:55]} 18. Ncb5 {[%clk 0:01:11]}  Red8 {[%clk 0:00:22]} 19. Nc7 {[%clk 0:01:04]}  Rac8 {[%clk 0:00:21]} 20. Bh3 {[%clk 0:01:04]}  Ba3 {[%clk 0:00:08]} 21. Bf5 {[%clk 0:00:45]}  Qh5 {[%clk 0:00:05]} 22. Bxc8 {[%clk 0:00:46]}  Bxc8 {[%clk 0:00:02]} 23. Qxh5 {[%clk 0:00:41]}  Nxh5 {[%clk 0:00:03]} 24. Rc2 {[%clk 0:00:34]}  Nxf4 {[%clk 0:00:03]} 25. gxf4 {[%clk 0:00:34]}  h5 {[%clk 0:00:02]} 26. Nc6 {[%clk 0:00:26]}  Rd6 {[%clk 0:00:01]} 27. Ne7+ {[%clk 0:00:26]}  Kh7 {[%clk 0:00:02]} 28. Nxc8 {[%clk 0:00:25]}  Rg6+ {[%clk 0:00:03]} 29. Kf1 {[%clk 0:00:25]}  Nb7 {[%clk 0:00:04]} 30. Nxd5 {[%clk 0:00:24]}  Nc5 {[%clk 0:00:04]} 31. f3 {[%clk 0:00:23]}  Rg4 {[%clk 0:00:05]} 32. fxg4 {[%clk 0:00:22]} 1-0


[Site "https://www.chess.com"]

[Event "Titled Tuesday Blitz March 07 Late 2023"]
[White "Bujisho, Benjamin"]
[Black "Chan, Kim Yew"]
[WhiteFideId "608610"]
[BlackFideId "5717981"]
[WhiteElo "2371"]
[BlackElo "2206"]
[Result "1-0"]
[Round "04"]
[TimeControl "180+2"]
[Date "2023.03.07"]
[WhiteClock "0:00:13"]
[BlackClock "0:00:03"]

1. d4 {[%clk 0:02:57]}  Nf6 {[%clk 0:02:59]} 2. c4 {[%clk 0:02:57]}  e6 {[%clk 0:02:58]} 3. Nc3 {[%clk 0:02:57]}  Bb4 {[%clk 0:02:57]} 4. f3 {[%clk 0:02:57]}  d5 {[%clk 0:02:51]} 5. a3 {[%clk 0:02:56]}  Be7 {[%clk 0:02:51]} 6. e4 {[%clk 0:02:54]}  dxe4 {[%clk 0:02:51]} 7. fxe4 {[%clk 0:02:54]}  c5 {[%clk 0:02:46]} 8. d5 {[%clk 0:02:54]}  exd5 {[%clk 0:02:47]} 9. cxd5 {[%clk 0:02:53]}  Bd6 {[%clk 0:02:42]} 10. Nf3 {[%clk 0:02:53]}  O-O {[%clk 0:02:37]} 11. Bd3 {[%clk 0:02:52]}  Nbd7 {[%clk 0:02:37]} 12. O-O {[%clk 0:02:51]}  a6 {[%clk 0:02:35]} 13. Bg5 {[%clk 0:02:50]}  Qc7 {[%clk 0:02:35]} 14. Qd2 {[%clk 0:02:29]}  h6 {[%clk 0:02:27]} 15. Bh4 {[%clk 0:02:27]}  b5 {[%clk 0:02:22]} 16. Rae1 {[%clk 0:02:26]}  Bf4 {[%clk 0:02:20]} 17. Qf2 {[%clk 0:02:17]}  c4 {[%clk 0:02:13]} 18. Bc2 {[%clk 0:02:15]}  Ng4 {[%clk 0:01:50]} 19. Qd4 {[%clk 0:02:05]}  Nxh2 {[%clk 0:01:43]} 20. e5 {[%clk 0:01:51]}  Nxf3+ {[%clk 0:01:39]} 21. Rxf3 {[%clk 0:01:52]}  Bxe5 {[%clk 0:01:40]} 22. Qe4 {[%clk 0:01:41]}  g6 {[%clk 0:01:13]} 23. Be7 {[%clk 0:01:30]}  Re8 {[%clk 0:01:02]} 24. d6 {[%clk 0:01:02]}  Bxd6 {[%clk 0:00:45]} 25. Rxf7 {[%clk 0:00:55]}  Ne5 {[%clk 0:00:27]} 26. Bxd6 {[%clk 0:00:45]}  Qxd6 {[%clk 0:00:12]} 27. Qxa8 {[%clk 0:00:19]}  Kxf7 {[%clk 0:00:11]} 28. Rf1+ {[%clk 0:00:19]}  Kg7 {[%clk 0:00:11]} 29. Qa7+ {[%clk 0:00:17]}  Qe7 {[%clk 0:00:11]} 30. Qd4 {[%clk 0:00:14]}  Kh7 {[%clk 0:00:10]} 31. Nd5 {[%clk 0:00:14]}  Qe6 {[%clk 0:00:02]} 32. Nf6+ {[%clk 0:00:14]}  Kg7 {[%clk 0:00:03]} 33. Nxe8+ {[%clk 0:00:14]}  Qxe8 {[%clk 0:00:03]} 34. Re1 {[%clk 0:00:13]} 1-0


[Site "https://www.chess.com"]